Cogmind - Beta 13 @@@ ROGUE MODE // 2024.06.06 @ 13:49:49 Player: Kat Result: Self-destructed Performance ------------- Evolutions (1) 500 Regions Visited (3) 600 Robots Destroyed (27) 135 Value Destroyed (518) 518 Prototype IDs (0) 0 Alien Tech Used (0) 0 Bonus (0) 0 TOTAL SCORE: 1753 Bonus ------- None Cogmind --------- Core Integrity 240/400 Matter 300/300 Energy 48/100 System Corruption 0% Temperature Cool (0) Movement Treading (160) Location -9/Materials Parts ------- > --- POWER (1) -------- (None) > --- PROPULSION (2) --- Improved Treads Improved Treads > --- UTILITY (3) ------ Heat Sink > --- WEAPON (3) ------- EM Shotgun > --- INVENTORY (5) ---- Improved Treads Weight Redist. System Weight Redist. System Datajack Peak State ------------ > --- POWER ------------ Light Ion Engine > --- PROPULSION ------- Aluminum Leg Aluminum Leg > --- UTILITY ---------- Small Storage Unit Seismic Detector > --- WEAPON ----------- Assault Rifle Assault Rifle > --- INVENTORY -------- Light Ion Engine Improved Treads Improved Treads Improved Treads Improved Treads Medium Laser [Rating: 8] Favorites ----------- Power Light Ion Engine Engine Light Ion Engine Propulsion Aluminum Leg Treads Improved Treads Leg Aluminum Leg Utility Small Storage Unit Device Sensor Array Storage Small Storage Unit Weapon Assault Rifle Energy Gun EM Shotgun Ballistic Gun Assault Rifle Launcher Grenade Launcher Special Melee Weapon Datajack Build | -11 -10 -10 -9 ------- Run | Yrd Mat Min Mat Slots Evolved 2 | . . . 2 Power . | . . . . Propulsion . | . . . . Utility 1 | . . . 1 Weapon 1 | . . . 1 Parts Attached 25 | 7 5 9 4 Power 3 | 1 1 1 . Engine 3 | 1 1 1 . Core . | . . . . Reactor . | . . . . Propulsion 8 | 2 1 3 2 Treads 4 | . . 2 2 Leg 4 | 2 1 1 . Wheel . | . . . . Hover . | . . . . Flight . | . . . . Utility 4 | 2 1 . 1 Device 3 | 1 1 . 1 Storage 1 | 1 . . . Processor . | . . . . Hackware . | . . . . Protection . | . . . . Artifact . | . . . . Weapon 10 | 2 2 5 1 Energy Gun 1 | . . . 1 Energy Cannon . | . . . . Ballistic Gun 7 | 2 2 3 . Ballistic Cannon . | . . . . Launcher 1 | . . 1 . Special Weapon . | . . . . Impact Weapon . | . . . . Slashing Weapon . | . . . . Piercing Weapon . | . . . . Special Melee Weapon 1 | . . 1 . Unidentified Prototypes . | . . . . Parts Lost 7 | . . 6 1 Power 2 | . . 2 . Propulsion 2 | . . 2 . Utility . | . . . . Weapon 3 | . . 2 1 Highest Loss Streak 5 | . . 5 1 To Critical Strikes . | . . . . Average Slot Usage (%) 79 | . 97 94 36 Engine 8 | . 13 11 . Treads 6 | . . 3 17 Leg 18 | . 28 23 . Device 12 | . 14 14 7 Storage 11 | . 14 14 3 Energy Gun 2 | . . . 7 Ballistic Gun 16 | . 26 20 1 Launcher 2 | . . 5 . Naked Turns 8 | . . . 8 Heaviest Build 14 | 13 13 14 8 Greatest Support 46 | 20 20 46 46 Greatest Overweight (x) 1 | 1 . . . Average Overweight (x) . | . . . . Largest Inventory Capacity 8 | 8 8 8 8 Average Capacity 7 | 7 8 8 5 Most Carried 8 | 4 8 8 5 Average Carried 6 | 3 6 7 4 Final Capacity 8 | 8 8 8 5 Final Carried 8 | 4 8 5 4 Class Distribution -------------------- 100% | Mutant Dominant Class ---------------- Mutant | -10/Materials Mutant | -10/Mines Mutant | -9/Materials Resources | -11 -10 -10 -9 ----------- Run | Yrd Mat Min Mat Matter Collected 686 | 324 72 185 105 Remotely . | . . . . Salvage Created 689 | 113 104 131 341 Parts 53 | 8 13 10 22 Haulers Intercepted 1 | . . . 1 Recyclers Shooed 2 | . . 1 1 Parts Field Recycled . | . . . . Retrieved Matter . | . . . . Parts Self-Destructed . | . . . . Prevented . | . . . . Kills | -11 -10 -10 -9 ------- Run | Yrd Mat Min Mat Combat Hostiles Destroyed 20 | . 3 6 11 Melee 2 | . . . 2 Guns 13 | . 3 5 5 AOE 5 | . . 1 4 Classes Destroyed 8 | 2 2 2 2 Tunneler 2 | 2 . . . Hauler 1 | . . . 1 Recycler 1 | 1 . . . Watcher 3 | . 2 . 1 Swarmer 12 | . 3 3 6 Grunt 6 | . . 2 4 Sentry 1 | . . . 1 Demolisher 1 | . . 1 . Best Kill Streak 8 | 2 4 3 8 Combat Bots Only 6 | . 3 3 6 Max Kills in Single Turn 3 | 1 1 1 3 Gunslinging . | . . . . Exploded 3 | . . 1 3 Melee 1 | . . . 1 Uniques/NPCs Destroyed . | . . . . Combat | -11 -10 -10 -9 -------- Run | Yrd Mat Min Mat Hostile Shots Fired 119 | . 19 49 51 Missed 37 | . 4 18 15 Damage Taken 1060 | . 120 586 354 Core 271 | . 24 87 160 Absorbed by Shields . | . . . . Core Remaining (%) 77 | 100 . 55 . Volleys Fired 69 | 9 11 23 26 Largest 2 | 2 2 2 1 Hottest 50 | 40 40 50 45 Shots Fired 106 | 18 22 40 26 Gun 100 | 18 22 34 26 Cannon . | . . . . Launcher 6 | . . 6 . Special . | . . . . Kinetic 77 | 18 22 34 3 Thermal . | . . . . Explosive 6 | . . 6 . Electromagnetic 23 | . . . 23 Robot Hit Streak 9 | 3 2 7 9 Robot Miss Streak 4 | 3 4 3 4 Penetration Max . | . . . . Secondary Targets 1 | . 1 . . Max Gunslinging Chain 1 | . 1 . . Shots Hit Robots 71 | 9 8 32 22 Core Hits 37 | 4 5 13 15 Critical Kills . | . . . . Critical Parts Destroyed . | . . . . Critical Strikes . | . . . . Melee Attacks 10 | . . 10 . Impact . | . . . . Slashing . | . . . . Piercing . | . . . . Sneak Attacks . | . . . . Combat Hostiles . | . . . . Follow-up Attacks . | . . . . Damage Inflicted 1071 | 125 103 346 497 Guns 817 | 120 103 258 336 Cannons . | . . . . Explosions 237 | . . 88 149 Melee . | . . . . Ramming 17 | 5 . . 12 Kinetic 491 | 120 103 258 10 Thermal 149 | . . . 149 Explosive 88 | . . 88 . Electromagnetic 326 | . . . 326 Impact . | . . . . Slashing . | . . . . Piercing . | . . . . Highest Corruption . | . . . . Average Corruption . | . . . . Corruption Purged . | . . . . Corruption Blocked . | . . . . Overload Shots . | . . . . Overflow Damage 4 | . . . 4 Projectiles . | . . . . Explosions 4 | . . . 4 Melee . | . . . . Knockbacks . | . . . . Impact . | . . . . Kinetic . | . . . . Secondary . | . . . . Self-Inflicted Damage 49 | . . . 49 Shots 2 | . . . 2 Rammed 7 | . . . 7 Targets Rammed 11 | 2 . . 9 Kicked 2 | 2 . . . Crushed 2 | . . . 2 Highest Temperature 6 | . . 2 6 Average Temperature 4 | . . 2 6 Received Heat Transfer 63 | . . 27 36 Siege Activations . | . . . . Robots Corrupted 1 | . . . 1 Combat Hostiles . | . . . . Parts Fried . | . . . . Impact Corruptions . | . . . . Robots Melted . | . . . . Combat Hostiles . | . . . . Parts Melted . | . . . . Heat Transferred 200 | . . . 200 Parts Sabotaged . | . . . . Parts Stolen . | . . . . Parts Stripped . | . . . . Power Chain Reactions 2 | . . . 2 Alert | -11 -10 -10 -9 ------- Run | Yrd Mat Min Mat Peak Influence 385 | 15 138 176 385 Initial 53 | . 9 53 11 Average 97 | 5 51 85 190 Maximum Alert Level 1 | . . . 1 Low Security (%) 86 | 100 100 100 42 Level 1 13 | . . . 57 Level 2 . | . . . . Level 3 . | . . . . Level 4 . | . . . . Level 5 . | . . . . High Security . | . . . . Max Security . | . . . . Squads Dispatched 4 | . 2 . 2 Investigation 2 | . 1 . 1 Extermination . | . . . . Reinforcement 2 | . 1 . 1 Assault . | . . . . Garrison . | . . . . Intercept . | . . . . Searches Triggered . | . . . . Construction Impeded . | . . . . Haulers Reinforced . | . . . . Active Scanning Responses . | . . . . Cargo Convoy Interrupts . | . . . . Stealth | -11 -10 -10 -9 --------- Run | Yrd Mat Min Mat Distress Signals 3 | . . . 3 Communications Jammed . | . . . . Distress Signals . | . . . . Times Spotted 30 | . 6 6 18 Peak Tracking Total 8 | . 4 3 8 Tactical Retreats 1 | . . . 1 Traps | -11 -10 -10 -9 ------- Run | Yrd Mat Min Mat Traps Triggered 3 | . 2 . 1 Indirectly . | . . . . Trap Hack Attempts . | . . . . Triggered . | . . . . Disarmed . | . . . . Reprogrammed . | . . . . Reused . | . . . . Traps Extracted . | . . . . Installed 1 | . . 1 . Triggered . | . . . . Machines | -11 -10 -10 -9 ---------- Run | Yrd Mat Min Mat Machines Disabled . | . . . . Max in Single Turn . | . . . . Machines Repaired . | . . . . Machines Dismantled . | . . . . Machines Sabotaged . | . . . . Overloaded Fab Kills . | . . . . Hacking | -11 -10 -10 -9 --------- Run | Yrd Mat Min Mat Machines Accessed . | . . . . Terminals . | . . . . Fabricators . | . . . . Repair Stations . | . . . . Recycling Units . | . . . . Scanalyzers . | . . . . Garrison Access . | . . . . Total Hacks . | . . . . Successful . | . . . . Failed . | . . . . Catastrophic . | . . . . Database Lockouts . | . . . . Manual . | . . . . Terminals . | . . . . Fabricators . | . . . . Repair Stations . | . . . . Recycling Units . | . . . . Scanalyzers . | . . . . Garrison Access . | . . . . Terminal Hacks . | . . . . Fabricator Hacks . | . . . . Repair Station Hacks . | . . . . Recycling Unit Hacks . | . . . . Scanalyzer . | . . . . Garrison Access Hacks . | . . . . Unauthorized Hacks . | . . . . Terminals . | . . . . Fabricators . | . . . . Repair Stations . | . . . . Recycling Units . | . . . . Scanalyzers . | . . . . Garrison Access . | . . . . Data Cores Recovered . | . . . . Used . | . . . . Hacking Detections . | . . . . Full Trace Events . | . . . . Feedback Events . | . . . . Feedback Blocked . | . . . . Robot Schematics Acquired . | . . . . Robots Built . | . . . . Authchips . | . . . . Time . | . . . . Total Robot Build Rating . | . . . . Part Schematics Acquired . | . . . . Parts Built . | . . . . Authchips . | . . . . Time . | . . . . Total Part Build Rating . | . . . . Parts Repaired . | . . . . Time . | . . . . Parts Recycled . | . . . . Recycled Matter . | . . . . Retrieved Matter . | . . . . Retrieved Components . | . . . . Parts Scanalyzed . | . . . . Part Schematics Acquired . | . . . . Parts Damaged . | . . . . Bothacking | -11 -10 -10 -9 ------------ Run | Yrd Mat Min Mat Used RIF Installer . | . . . . Robots Hacked . | . . . . Non-combat . | . . . . Combat . | . . . . Robot Hacks Applied . | . . . . Relay Couplers Released . | . . . . Fabnet Peak Effective % . | . . . . Robots Rewired . | . . . . Allies Hacked . | . . . . Hacks Repelled . | . . . . Allies | -11 -10 -10 -9 -------- Run | Yrd Mat Min Mat Total Allies . | . . . . Largest Group . | . . . . Highest-Rated Group . | . . . . Highest-Rated Ally . | . . . . Total Orders . | . . . . Ally Attacks . | . . . . Total Damage . | . . . . Kills . | . . . . Allies Corrupted . | . . . . Allies Melted . | . . . . Intel | -11 -10 -10 -9 ------- Run | Yrd Mat Min Mat Robot Analysis Total . | . . . . Derelict Logs Recovered . | . . . . Drone Launches . | . . . . Drone Recoveries . | . . . . Exploration | -11 -10 -10 -9 ------------- Run | Yrd Mat Min Mat Turns Passed 1152 | 112 214 545 281 Spaces Moved 710 | 56 137 352 165 Core 61 | 2 . . 59 Treads 143 | . . 37 106 Legs 506 | 54 137 315 . Wheels . | . . . . Hover . | . . . . Flight . | . . . . Fastest Speed 50 | 50 120 120 50 Average Speed 122 | 122 120 124 120 Slowest Speed 190 | 190 120 160 160 Overloaded Moves . | . . . . Propulsion Burnouts . | . . . . Robots Hopped . | . . . . Cave-ins Triggered . | . . . . Exploration Rate (%) 31 | 5 27 76 16 Regions Visited 3 Branch Regions 1 Pre-discovered Areas . | . . . . Known Exits Taken . | . . . . Unknown Exits Taken 3 | 1 1 1 . Scrap Searched . | . . . . Spaces Dug . | . . . . Terrain Destroyed 32 | . . 24 8 Melee . | . . . . Projectile . | . . . . AOE 32 | . . 24 8 Terrain Rammed . | . . . . Walls Destroyed . | . . . . Machines Disabled . | . . . . Actions | -11 -10 -10 -9 --------- Run | Yrd Mat Min Mat Total 869 | 77 164 414 214 Wait 26 | . . 17 9 Move 708 | 56 136 351 165 Hop . | . . . . Pick Up 12 | 4 7 . 1 Fast Attach 16 | 7 5 2 2 Attach 6 | . . 4 2 Detach 1 | . . 1 . Swap 3 | . . 3 . Drop 7 | . 5 2 . Fire 69 | 9 11 23 26 Melee 10 | . . 10 . Ram . | . . . . Kick 1 | 1 . . . Crush 9 | . . . 9 Escape Stasis . | . . . . Rewire . | . . . . Trap 1 | . . 1 . Miscellaneous . | . . . . Route ------- -11/Scrapyard -10/Materials -10/Mines -9/Materials History --------- Turn | Location | Event 24 | -11/Scrapyard | Discovered new exit (range 16) 113 | -11/Scrapyard | Entered Materials 252 | -10/Materials | Discovered new exit (range 16) 311 | -10/Materials | Build established: Mutant 327 | -10/Materials | Entered Mines 578 | -10/Mines | YI-UF0 nonchalantly dropped a Grenade Launcher on the ground 644 | -10/Mines | Found a hidden stash of uninstalled traps 709 | -10/Mines | Discovered new exit (range 15) 724 | -10/Mines | Assembled infested the area 729 | -10/Mines | Assisted by a Guerilla fighting off Assembled 835 | -10/Mines | Lost 5 parts (1p2n2w) 872 | -10/Mines | Entered Materials 872 | -9/Materials | Evolved 2 slots: Utility x1, Weapon x1 952 | -9/Materials | Released all parts (4) 1153 | -9/Materials | Self-destructed Last Messages --------------- 00994_ W-16 Scout sends out distress signal. 00994_ U-05 Engineer lays Concrete. 00996_ K-01 Serf collects debris. 01000_ R-06 Scavenger collects Ion Engine. 01003_ A-02 Transporter system terminally corrupted. 01010_ R-06 Scavenger collects Corrupted Weight Redist. System. 01044_ Chain reaction triggered in Ion Engine. 01044_ G-34 Mercenary destroyed. 01050_ Acquired 46 matter. 01055_ U-05 Engineer builds a Wall. 01056_ Acquired Heat Sink. 01059_ U-05 Engineer lays Concrete. 01060_ U-05 Engineer builds a Wall. 01062_ Acquired 37 matter. 01069_ U-05 Engineer lays Concrete. 01082_ Acquired Imp. Treads. 01113_ W-16 Scout sends out distress signal. 01120_ S-10 Pest destroyed. 01143_ K-01 Serf cleans the Terminal. 01152_ K-01 Serf cleans the Pressure Siphon. Map ----- +----------------------------------------------------+ | ?????????????????????????????????????????????????? | | ?????????????????????????????????????????????????? | | ?????????????????????????????????????????????????? | | ?????????????????????????????????????????????????? | | ?????????????????????????????????????????????????? | | ?????????????????????????????????????????????????? | | ?????????????????????????????????????????????????? | | ?????????????????????????????????????????????????? | | ?????????????????????????????????????????????????? | | ?????????????????????????????????????????????????? | | ???????????????????????? ???????????????????????? | | ???????????????????????" T"?????????????????????? | | ??????????????????????""k ""#????????????????????? | | ?????????????????????? #????????????????????? | | ??????????????????????? ##??????????????????#? | | ??????????????????????? ??????????????????? ? | | ???????????????????????? ??????????????????? ? | | ???????????????????????? ??????????????????? ? | | ????????????????????????# #??????????????????? ? | | ????????????????????????# #######????#####???? ? | | ????????????????????????# !!## #???? ? | | ?????????????????######## !!# """ #???# # | | ?????????????????# # !!## """"" #???# # | | ?????????????????# # !!## """"" #???# # | | ?????????????????# """ #u w !!## """"" #???# # | | ?????????????????# """ /@ !!## """ #???# # | | ###########??????# """ #= ###### =#???# # | | # #??????# #!! #????# !%#???# # | | # ###############%% ##############+##### # | | # # %!!! % !*= | | # """ """ + =[** =[ | | # """ """ # =%[ !%* | | # """ """ # #######+########+############## | | # # """ ## # #????????? | | # = [% # """ ## # #????????? | | #####+##### """ ## # #????????? | | ???##=#"### ## # #????????? | | ???##! = ## """ """ # #????????? | | ???##"#"############# """ """ # #????????? | | ????#####???????????# """ """ # | #????????? | | ????????????????????# # #????????? | | ????????????????????#####################????????? | | | | | | | | | | | | | | | | | +----------------------------------------------------+ Best States ------------- Heat Dissipation 38 Energy Generation 10 Energy Capacity 125 Matter Stores 300 Matter Capacity 300 Sight Range 16 Robot Scan Range 14 Terrain Scan Density 10 Evasion (%) 55 Recoil Reduction 2 Item Schematics ----------------- None Robot Schematics ------------------ None Fabricated ------------ Nothing Alien Tech Used ----------------- None Achievements -------------- None Challenges ------------ None Game ------ Seed HeatHackingReconfigurator Manual? 0 Play Time 00:11:40 Cumulative 27.1 hours Start 2024.06.06 @ 13:40:42 End 2024.06.06 @ 13:49:49 Sessions 1 Manual Loads 0 Difficulty Rogue Special Mode None Game No. 60 Rogue 60 Adventurer 0 Explorer 0 Win Type - Total 0 Types 0/0/0/0/0/0/0/0/0 Lore% 21 Gallery% 25 Achievement% 21 Wizard Run 0 Options --------- Layout 0 ASCII 0 Keyboard 0 Movement Mouse Keybinds 0 Fullscreen 2 Font 18/Terminus Map View 76x50 Zoom Use 0% Tactical HUD 1 Map Filters NONE Filters NONE Steam 1 RUN: 7cca76dc-6465-4533-9de3-7cb94fece246